[Event "Early-Titled-Tuesday-Blitz-March-26-2024"]
[Site "Chess.com"]
[Date "2024.03.26"]
[Round "1"]
[White "lilleper1"]
[Black "JosefineHeinemann"]
[Result "1-0"]
[WhiteElo "2919"]
[BlackElo "2510"]
[TimeControl "180+1"]
[EndTime "8:06:20 PDT"]
[Termination "lilleper1 won by resignation"]

1. e4 {[%clk 0:03:00.9]} 1... e5 {[%clk 0:02:58.3]} 2. Nf3 {[%clk 0:03:01]} 2...
Nc6 {[%clk 0:02:58.4]} 3. Bc4 {[%clk 0:03:01.3]} 3... Bc5 {[%clk 0:02:57.3]} 4.
c3 {[%clk 0:03:00.9]} 4... Nf6 {[%clk 0:02:56.8]} 5. d3 {[%clk 0:03:01.2]} 5...
d6 {[%clk 0:02:54.9]} 6. a4 {[%clk 0:03:00.8]} 6... a5 {[%clk 0:02:54]} 7. Na3
{[%clk 0:02:59.6]} 7... h6 {[%clk 0:02:53.9]} 8. Nc2 {[%clk 0:02:57.4]} 8... O-O
{[%clk 0:02:49.5]} 9. Be3 {[%clk 0:02:54.5]} 9... Bxe3 {[%clk 0:02:48]} 10. Nxe3
{[%clk 0:02:55.4]} 10... Be6 {[%clk 0:02:48.4]} 11. O-O {[%clk 0:02:53.9]} 11...
d5 {[%clk 0:02:32.5]} 12. exd5 {[%clk 0:02:31.9]} 12... Nxd5 {[%clk 0:02:33.4]}
13. Qb3 {[%clk 0:02:17.8]} 13... Nxe3 {[%clk 0:02:28.8]} 14. fxe3 {[%clk
0:02:17.5]} 14... Bxc4 {[%clk 0:02:28.7]} 15. Qxc4 {[%clk 0:02:17.2]} 15... Qd6
{[%clk 0:02:22]} 16. Nh4 {[%clk 0:02:04.1]} 16... Ne7 {[%clk 0:01:49.6]} 17. e4
{[%clk 0:01:57.1]} 17... c6 {[%clk 0:01:31.9]} 18. Rf3 {[%clk 0:01:53.5]} 18...
Qe6 {[%clk 0:01:31.6]} 19. Qxe6 {[%clk 0:01:44.9]} 19... fxe6 {[%clk 0:01:31]}
20. Rxf8+ {[%clk 0:01:45.1]} 20... Rxf8 {[%clk 0:01:29.9]} 21. Ra3 {[%clk
0:01:37.8]} 21... Rd8 {[%clk 0:01:10.8]} 22. Rb3 {[%clk 0:01:31.9]} 22... Rxd3
{[%clk 0:00:52.6]} 23. Rxb7 {[%clk 0:01:30.2]} 23... Kf7 {[%clk 0:00:47.5]} 24.
Nf3 {[%clk 0:01:28]} 24... Rd1+ {[%clk 0:00:38]} 25. Kf2 {[%clk 0:01:26]} 25...
Kf6 {[%clk 0:00:36.2]} 26. Ke2 {[%clk 0:01:10.9]} 26... Ra1 {[%clk 0:00:35.2]}
27. b3 {[%clk 0:01:06.5]} 27... Ra2+ {[%clk 0:00:34.8]} 28. Nd2 {[%clk 0:01:06]}
28... Ng6 {[%clk 0:00:30.9]} 29. g3 {[%clk 0:01:05.9]} 29... Ne7 {[%clk
0:00:16.7]} 30. Ra7 {[%clk 0:01:04.7]} 30... Ra1 {[%clk 0:00:16.4]} 31. Rxa5
{[%clk 0:01:02.5]} 31... Rh1 {[%clk 0:00:16.2]} 32. Nf3 {[%clk 0:01:02.6]} 32...
Rb1 {[%clk 0:00:16.2]} 33. b4 {[%clk 0:01:01.6]} 33... Rb2+ {[%clk 0:00:16.4]}
34. Ke3 {[%clk 0:01:00.6]} 34... g5 {[%clk 0:00:15.4]} 35. Nxe5 {[%clk
0:00:58.9]} 35... Rxh2 {[%clk 0:00:13.7]} 36. Ng4+ {[%clk 0:00:58.9]} 1-0

[Event "Early-Titled-Tuesday-Blitz-March-26-2024"]
[Site "Chess.com"]
[Date "2024.03.26"]
[Round "1"]
[White "ajedrezsinlimites"]
[Black "KnightmareJoker"]
[Result "1/2-1/2"]
[WhiteElo "2623"]
[BlackElo "2294"]
[TimeControl "180+1"]
[EndTime "8:06:20 PDT"]
[Termination "Game drawn by repetition"]

1. e4 {[%clk 0:02:53.7]} 1... e5 {[%clk 0:02:59.6]} 2. Nf3 {[%clk 0:02:54]} 2...
Nc6 {[%clk 0:03:00]} 3. Bb5 {[%clk 0:02:54.6]} 3... a6 {[%clk 0:03:00.2]} 4. Ba4
{[%clk 0:02:55]} 4... Nf6 {[%clk 0:03:00.2]} 5. O-O {[%clk 0:02:55]} 5... b5
{[%clk 0:03:00.6]} 6. Bb3 {[%clk 0:02:54.7]} 6... Bc5 {[%clk 0:03:01.3]} 7. a4
{[%clk 0:02:55]} 7... Rb8 {[%clk 0:03:01.2]} 8. c3 {[%clk 0:02:54.7]} 8... d6
{[%clk 0:03:01.7]} 9. d4 {[%clk 0:02:54.5]} 9... Bb6 {[%clk 0:03:02.4]} 10. a5
{[%clk 0:02:55.1]} 10... Ba7 {[%clk 0:03:01.3]} 11. dxe5 {[%clk 0:02:54.9]}
11... Nxe5 {[%clk 0:02:58.9]} 12. Nxe5 {[%clk 0:02:46.5]} 12... dxe5 {[%clk
0:02:59.1]} 13. Qxd8+ {[%clk 0:02:46.4]} 13... Kxd8 {[%clk 0:03:00]} 14. Bxf7
{[%clk 0:02:41.3]} 14... Nxe4 {[%clk 0:02:44.5]} 15. Bd5 {[%clk 0:02:41.1]}
15... Bb7 {[%clk 0:02:26.5]} 16. Bxe4 {[%clk 0:02:38.4]} 16... Bxe4 {[%clk
0:02:26.4]} 17. Re1 {[%clk 0:02:34.2]} 17... Bxb1 {[%clk 0:02:00]} 18. Rxb1
{[%clk 0:02:33.2]} 18... Rf8 {[%clk 0:02:00.3]} 19. Be3 {[%clk 0:02:27.5]} 19...
Bxe3 {[%clk 0:01:55.4]} 20. Rxe3 {[%clk 0:02:28.4]} 20... Rf5 {[%clk 0:01:53.3]}
21. Rbe1 {[%clk 0:02:28.3]} 21... b4 {[%clk 0:01:51]} 22. c4 {[%clk 0:02:28.2]}
22... Kd7 {[%clk 0:01:41.1]} 23. Rxe5 {[%clk 0:02:27.3]} 23... Rbf8 {[%clk
0:01:39.9]} 24. f3 {[%clk 0:01:52.1]} 24... R8f6 {[%clk 0:01:32]} 25. b3 {[%clk
0:00:36.4]} 25... Kd6 {[%clk 0:01:27.8]} 26. Rxf5 {[%clk 0:00:25.4]} 26... Rxf5
{[%clk 0:01:27.9]} 27. Rd1+ {[%clk 0:00:23.8]} 27... Kc6 {[%clk 0:01:23.2]} 28.
Ra1 {[%clk 0:00:23.1]} 28... Kc5 {[%clk 0:01:23.6]} 29. Rd1 {[%clk 0:00:20.4]}
29... Kc6 {[%clk 0:01:20.8]} 30. Ra1 {[%clk 0:00:20.3]} 30... Kc5 {[%clk
0:01:19.2]} 31. Ra4 {[%clk 0:00:20.2]} 31... Rf6 {[%clk 0:00:55.8]} 32. Kf2
{[%clk 0:00:20.2]} 32... Rd6 {[%clk 0:00:55.5]} 33. Ke2 {[%clk 0:00:20.3]} 33...
Re6+ {[%clk 0:00:54.7]} 34. Kf2 {[%clk 0:00:20.3]} 34... Rd6 {[%clk 0:00:55]}
35. Ke2 {[%clk 0:00:20.4]} 35... Re6+ {[%clk 0:00:55.4]} 36. Kf2 {[%clk
0:00:19.8]} 36... Rd6 {[%clk 0:00:55.8]} 1/2-1/2

[Event "Early-Titled-Tuesday-Blitz-March-26-2024"]
[Site "Chess.com"]
[Date "2024.03.26"]
[Round "1"]
[White "JiiHart"]
[Black "JiaHaoxiang"]
[Result "1/2-1/2"]
[WhiteElo "2209"]
[BlackElo "2595"]
[TimeControl "180+1"]
[EndTime "8:06:23 PDT"]
[Termination "Game drawn - insufficient material"]

1. e4 {[%clk 0:02:59.7]} 1... c5 {[%clk 0:02:59.7]} 2. c3 {[%clk 0:02:59.7]}
2... d5 {[%clk 0:02:59.2]} 3. exd5 {[%clk 0:02:59.6]} 3... Qxd5 {[%clk
0:02:59.9]} 4. d4 {[%clk 0:03:00]} 4... Nf6 {[%clk 0:02:59.4]} 5. Nf3 {[%clk
0:02:57.4]} 5... e6 {[%clk 0:02:59.6]} 6. Na3 {[%clk 0:02:48.2]} 6... Nc6 {[%clk
0:02:58.3]} 7. Be3 {[%clk 0:02:46]} 7... cxd4 {[%clk 0:02:58]} 8. Nb5 {[%clk
0:02:45.9]} 8... Qd8 {[%clk 0:02:54.7]} 9. Nbxd4 {[%clk 0:02:44.3]} 9... Nxd4
{[%clk 0:02:49.1]} 10. Qxd4 {[%clk 0:02:32.3]} 10... Qxd4 {[%clk 0:02:39.6]} 11.
Bxd4 {[%clk 0:02:28.1]} 11... Be7 {[%clk 0:02:37.2]} 12. Bb5+ {[%clk 0:02:23]}
12... Bd7 {[%clk 0:02:31.6]} 13. Bxd7+ {[%clk 0:02:22.5]} 13... Nxd7 {[%clk
0:02:30.9]} 14. Rd1 {[%clk 0:02:17.2]} 14... f6 {[%clk 0:02:25.5]} 15. O-O
{[%clk 0:02:14.6]} 15... e5 {[%clk 0:02:11.5]} 16. Be3 {[%clk 0:02:14.5]} 16...
Nc5 {[%clk 0:02:10.8]} 17. Bxc5 {[%clk 0:02:07.6]} 17... Bxc5 {[%clk 0:02:10.1]}
18. Rd5 {[%clk 0:02:02.8]} 18... Bb6 {[%clk 0:02:08.5]} 19. Rfd1 {[%clk
0:02:00.8]} 19... Rd8 {[%clk 0:02:08.1]} 20. Rxd8+ {[%clk 0:01:57.4]} 20... Bxd8
{[%clk 0:02:09]} 21. Nd2 {[%clk 0:01:53.1]} 21... Ke7 {[%clk 0:02:07.1]} 22. Ne4
{[%clk 0:01:44.8]} 22... Bb6 {[%clk 0:01:57.7]} 23. Kf1 {[%clk 0:01:42.8]} 23...
Rd8 {[%clk 0:01:52]} 24. Rxd8 {[%clk 0:01:41.8]} 24... Bxd8 {[%clk 0:01:52.6]}
25. Ke2 {[%clk 0:01:39.8]} 25... f5 {[%clk 0:01:50.5]} 26. Nd2 {[%clk
0:01:26.5]} 26... Ke6 {[%clk 0:01:50]} 27. f3 {[%clk 0:01:26.2]} 27... b5 {[%clk
0:01:48.5]} 28. Kd3 {[%clk 0:01:25.6]} 28... Kd5 {[%clk 0:01:48.7]} 29. b3
{[%clk 0:01:25.3]} 29... Bg5 {[%clk 0:01:47.1]} 30. c4+ {[%clk 0:01:23.1]} 30...
bxc4+ {[%clk 0:01:47.3]} 31. Nxc4 {[%clk 0:01:22.2]} 31... e4+ {[%clk
0:01:47.3]} 32. fxe4+ {[%clk 0:01:22.4]} 32... fxe4+ {[%clk 0:01:48.2]} 33. Ke2
{[%clk 0:01:22.8]} 33... Kd4 {[%clk 0:01:46.1]} 34. Na5 {[%clk 0:01:12.9]} 34...
a6 {[%clk 0:01:41.7]} 35. h3 {[%clk 0:01:06]} 35... Kc3 {[%clk 0:01:40]} 36. Nc4
{[%clk 0:01:02.9]} 36... Bf4 {[%clk 0:01:37.3]} 37. g4 {[%clk 0:01:01.3]} 37...
g6 {[%clk 0:01:36.6]} 38. Nb6 {[%clk 0:00:55.1]} 38... Kb2 {[%clk 0:01:34.4]}
39. Nd5 {[%clk 0:00:54.6]} 39... Bg5 {[%clk 0:01:33.7]} 40. Nb4 {[%clk
0:00:49.4]} 40... Ka3 {[%clk 0:01:32.8]} 41. Nxa6 {[%clk 0:00:48.6]} 41... Kxa2
{[%clk 0:01:32.8]} 42. Nc5 {[%clk 0:00:48.3]} 42... Be7 {[%clk 0:01:29.6]} 43.
Nxe4 {[%clk 0:00:36.3]} 43... Kxb3 {[%clk 0:01:30.2]} 44. Kd3 {[%clk 0:00:35.1]}
44... h5 {[%clk 0:01:25.5]} 45. gxh5 {[%clk 0:00:34.9]} 45... gxh5 {[%clk
0:01:25.6]} 46. Ng3 {[%clk 0:00:34.5]} 46... h4 {[%clk 0:01:25.1]} 47. Nf5
{[%clk 0:00:34.7]} 47... Bg5 {[%clk 0:01:25.1]} 48. Ke4 {[%clk 0:00:34.6]} 48...
Kc4 {[%clk 0:01:24.7]} 49. Kf3 {[%clk 0:00:34.9]} 49... Kd5 {[%clk 0:01:23]} 50.
Kg4 {[%clk 0:00:35.2]} 50... Bd8 {[%clk 0:01:23.5]} 51. Nxh4 {[%clk 0:00:35.5]}
51... Ke6 {[%clk 0:01:23.5]} 52. Nf5 {[%clk 0:00:33.4]} 52... Kf7 {[%clk
0:01:23.6]} 53. h4 {[%clk 0:00:33.8]} 53... Bxh4 {[%clk 0:01:23.5]} 1/2-1/2

[Event "Early-Titled-Tuesday-Blitz-March-26-2024"]
[Site "Chess.com"]
[Date "2024.03.26"]
[Round "1"]
[White "jakopogi"]
[Black "Road2GM3000"]
[Result "1-0"]
[WhiteElo "2783"]
[BlackElo "2429"]
[TimeControl "180+1"]
[EndTime "8:06:24 PDT"]
[Termination "jakopogi won by resignation"]

1. e4 {[%clk 0:00:32.7]} 1... c5 {[%clk 0:03:00.4]} 2. Nc3 {[%clk 0:00:32.4]}
2... d6 {[%clk 0:03:00]} 3. g3 {[%clk 0:00:33]} 3... g6 {[%clk 0:02:59.9]} 4.
Bg2 {[%clk 0:00:33.6]} 4... Bg7 {[%clk 0:03:00.7]} 5. d3 {[%clk 0:00:34.2]} 5...
e5 {[%clk 0:03:01.3]} 6. Nge2 {[%clk 0:00:34.7]} 6... Ne7 {[%clk 0:03:02]} 7.
O-O {[%clk 0:00:35.4]} 7... Nbc6 {[%clk 0:03:02.8]} 8. Be3 {[%clk 0:00:35.9]}
8... O-O {[%clk 0:03:03.3]} 9. Qd2 {[%clk 0:00:36.4]} 9... f5 {[%clk 0:03:02.5]}
10. Bh6 {[%clk 0:00:36.6]} 10... f4 {[%clk 0:03:03]} 11. Bxg7 {[%clk 0:00:36.2]}
11... Kxg7 {[%clk 0:03:03.7]} 12. gxf4 {[%clk 0:00:36.8]} 12... Bg4 {[%clk
0:03:00.9]} 13. f3 {[%clk 0:00:36.4]} 13... Be6 {[%clk 0:03:00.1]} 14. Kh1
{[%clk 0:00:36]} 14... Nd4 {[%clk 0:02:58.4]} 15. fxe5 {[%clk 0:00:36.4]} 15...
dxe5 {[%clk 0:02:58.3]} 16. f4 {[%clk 0:00:36.9]} 16... Qc7 {[%clk 0:02:38.5]}
17. fxe5 {[%clk 0:00:32.3]} 17... Qxe5 {[%clk 0:02:35.4]} 18. Nf4 {[%clk
0:00:32.9]} 18... Bf7 {[%clk 0:02:30.1]} 19. Rf2 {[%clk 0:00:33.2]} 19... b5
{[%clk 0:02:29.1]} 20. Raf1 {[%clk 0:00:33.5]} 20... b4 {[%clk 0:02:29.8]} 21.
Nd1 {[%clk 0:00:34.1]} 21... Ne6 {[%clk 0:02:25.1]} 22. Ne3 {[%clk 0:00:30.5]}
22... Nxf4 {[%clk 0:02:22.2]} 23. Rxf4 {[%clk 0:00:31.4]} 23... Qe6 {[%clk
0:02:12.3]} 24. Qf2 {[%clk 0:00:30.2]} 24... Qxa2 {[%clk 0:02:08.4]} 25. b3
{[%clk 0:00:23.4]} 25... Rfe8 {[%clk 0:00:27.8]} 26. Rxf7+ {[%clk 0:00:22.7]}
26... Kg8 {[%clk 0:00:28.4]} 27. Qf6 {[%clk 0:00:23]} 27... Qb2 {[%clk
0:00:28.8]} 28. Qxb2 {[%clk 0:00:23.2]} 1-0

[Event "Early-Titled-Tuesday-Blitz-March-26-2024"]
[Site "Chess.com"]
[Date "2024.03.26"]
[Round "1"]
[White "Likvidator228"]
[Black "pfalcon1949"]
[Result "1-0"]
[WhiteElo "2567"]
[BlackElo "2042"]
[TimeControl "180+1"]
[EndTime "8:06:24 PDT"]
[Termination "Likvidator228 won by resignation"]

1. d4 {[%clk 0:02:59.4]} 1... Nf6 {[%clk 0:02:56.1]} 2. c4 {[%clk 0:02:59]} 2...
c5 {[%clk 0:02:55.6]} 3. d5 {[%clk 0:02:57.7]} 3... b5 {[%clk 0:02:55.5]} 4.
cxb5 {[%clk 0:02:58]} 4... a6 {[%clk 0:02:56]} 5. bxa6 {[%clk 0:02:56.5]} 5...
g6 {[%clk 0:02:56]} 6. Nc3 {[%clk 0:02:57]} 6... Bg7 {[%clk 0:02:56.1]} 7. e4
{[%clk 0:02:57.6]} 7... O-O {[%clk 0:02:55.1]} 8. Nf3 {[%clk 0:02:58.1]} 8...
Qa5 {[%clk 0:02:55.1]} 9. Bd2 {[%clk 0:02:54.6]} 9... Bxa6 {[%clk 0:02:48.1]}
10. Bxa6 {[%clk 0:02:54.8]} 10... Qxa6 {[%clk 0:02:46.4]} 11. Qe2 {[%clk
0:02:54]} 11... Qxe2+ {[%clk 0:02:36.6]} 12. Kxe2 {[%clk 0:02:54.9]} 12... d6
{[%clk 0:02:36.6]} 13. Rhe1 {[%clk 0:02:28.9]} 13... Nbd7 {[%clk 0:02:36.1]} 14.
Kf1 {[%clk 0:02:27.9]} 14... Rfb8 {[%clk 0:02:35.4]} 15. b3 {[%clk 0:02:26.8]}
15... Ng4 {[%clk 0:02:30.7]} 16. h3 {[%clk 0:02:23.3]} 16... Nge5 {[%clk
0:02:31.2]} 17. Nxe5 {[%clk 0:02:23.3]} 17... Nxe5 {[%clk 0:02:32.1]} 18. Ke2
{[%clk 0:02:16.8]} 18... c4 {[%clk 0:02:28.1]} 19. Reb1 {[%clk 0:01:11.9]} 19...
cxb3 {[%clk 0:02:19.4]} 20. axb3 {[%clk 0:01:12]} 20... Rxa1 {[%clk 0:02:08.6]}
21. Rxa1 {[%clk 0:01:12]} 21... h6 {[%clk 0:02:03.4]} 22. Rb1 {[%clk 0:01:09.1]}
22... e6 {[%clk 0:01:56]} 23. f4 {[%clk 0:01:08.4]} 23... Nd7 {[%clk 0:01:51.4]}
24. dxe6 {[%clk 0:01:08.7]} 24... fxe6 {[%clk 0:01:50.9]} 25. b4 {[%clk
0:01:08.5]} 25... Kf7 {[%clk 0:01:42.2]} 26. Kd3 {[%clk 0:01:08.4]} 26... Ke7
{[%clk 0:01:39.2]} 27. Be3 {[%clk 0:01:05]} 27... h5 {[%clk 0:01:25.4]} 28. Bd4
{[%clk 0:01:04.8]} 28... Bxd4 {[%clk 0:01:19.9]} 29. Kxd4 {[%clk 0:01:04.9]}
29... e5+ {[%clk 0:01:17.9]} 30. fxe5 {[%clk 0:01:04.5]} 30... dxe5+ {[%clk
0:01:13.5]} 31. Kd3 {[%clk 0:01:01.8]} 31... Ke6 {[%clk 0:01:07.3]} 32. Nd5
{[%clk 0:00:55.1]} 32... Nb6 {[%clk 0:00:53.5]} 33. Nxb6 {[%clk 0:00:51.6]}
33... Rxb6 {[%clk 0:00:54.4]} 34. b5 {[%clk 0:00:51.8]} 34... Kd6 {[%clk
0:00:54]} 35. Kc4 {[%clk 0:00:52.3]} 35... Ke6 {[%clk 0:00:44.4]} 36. Kc5 {[%clk
0:00:50.6]} 36... Rb8 {[%clk 0:00:42]} 37. b6 {[%clk 0:00:51.1]} 37... Rc8+
{[%clk 0:00:42.5]} 38. Kb5 {[%clk 0:00:51.6]} 38... Kd7 {[%clk 0:00:41.3]} 39.
Rd1+ {[%clk 0:00:50.7]} 39... Ke6 {[%clk 0:00:40.1]} 40. b7 {[%clk 0:00:51]}
40... Rb8 {[%clk 0:00:39.9]} 41. Kc6 {[%clk 0:00:50.9]} 41... Rf8 {[%clk
0:00:36.1]} 42. Kc7 {[%clk 0:00:46.6]} 1-0

[Event "Early-Titled-Tuesday-Blitz-March-26-2024"]
[Site "Chess.com"]
[Date "2024.03.26"]
[Round "1"]
[White "NastyaHn"]
[Black "Abund"]
[Result "0-1"]
[WhiteElo "2452"]
[BlackElo "2809"]
[TimeControl "180+1"]
[EndTime "8:06:25 PDT"]
[Termination "Abund won by resignation"]

1. Nc3 {[%clk 0:03:00.5]} 1... d5 {[%clk 0:02:54.6]} 2. e4 {[%clk 0:03:00.3]}
2... dxe4 {[%clk 0:02:54.3]} 3. Nxe4 {[%clk 0:03:00.4]} 3... Nf6 {[%clk
0:02:55.1]} 4. Nxf6+ {[%clk 0:02:59.8]} 4... exf6 {[%clk 0:02:56]} 5. d4 {[%clk
0:03:00.4]} 5... Bd6 {[%clk 0:02:53.5]} 6. Be3 {[%clk 0:03:00.5]} 6... O-O
{[%clk 0:02:53.4]} 7. Bd3 {[%clk 0:03:00.5]} 7... Re8 {[%clk 0:02:51.8]} 8. Ne2
{[%clk 0:03:00.6]} 8... Bg4 {[%clk 0:02:49.6]} 9. c3 {[%clk 0:02:55.1]} 9... Nd7
{[%clk 0:02:48.5]} 10. Qc2 {[%clk 0:02:55.3]} 10... h6 {[%clk 0:02:38.1]} 11.
O-O-O {[%clk 0:02:48.3]} 11... c6 {[%clk 0:02:37.2]} 12. h3 {[%clk 0:02:46]}
12... Be6 {[%clk 0:02:37.2]} 13. a3 {[%clk 0:02:37.4]} 13... b5 {[%clk
0:02:36.7]} 14. Be4 {[%clk 0:02:27.3]} 14... Bd5 {[%clk 0:02:27.5]} 15. Bxd5
{[%clk 0:02:22.9]} 15... cxd5 {[%clk 0:02:28.4]} 16. Qf5 {[%clk 0:02:12.9]}
16... Nb6 {[%clk 0:02:24.4]} 17. Qg4 {[%clk 0:02:12.1]} 17... Re4 {[%clk
0:02:21.3]} 18. Qf5 {[%clk 0:02:05.1]} 18... a5 {[%clk 0:02:11.2]} 19. Kc2
{[%clk 0:01:27]} 19... b4 {[%clk 0:02:08.3]} 20. axb4 {[%clk 0:01:26.6]} 20...
axb4 {[%clk 0:02:08.1]} 21. Ra1 {[%clk 0:01:26.2]} 21... Rc8 {[%clk 0:01:58.4]}
22. Rhe1 {[%clk 0:01:14.8]} 22... Qc7 {[%clk 0:01:51.4]} 23. Bd2 {[%clk
0:01:11.3]} 23... b3+ {[%clk 0:01:40.3]} 24. Kd1 {[%clk 0:01:04.8]} 24... Rce8
{[%clk 0:01:31.9]} 25. f3 {[%clk 0:00:47.1]} 25... R4e6 {[%clk 0:01:20]} 26. Qg4
{[%clk 0:00:45.3]} 26... Qc4 {[%clk 0:01:15.7]} 27. Nc1 {[%clk 0:00:14.4]} 27...
Rxe1+ {[%clk 0:01:04.7]} 28. Bxe1 {[%clk 0:00:14.7]} 28... Qf1 {[%clk
0:01:05.6]} 29. Qh4 {[%clk 0:00:14.3]} 29... Nc4 {[%clk 0:00:57.1]} 30. Qf2
{[%clk 0:00:07.3]} 30... Nxb2+ {[%clk 0:00:56.8]} 31. Kd2 {[%clk 0:00:07.2]}
31... Bf4+ {[%clk 0:00:56.4]} 0-1

[Event "Early-Titled-Tuesday-Blitz-March-26-2024"]
[Site "Chess.com"]
[Date "2024.03.26"]
[Round "1"]
[White "Happy1712Drummer"]
[Black "klimkoj"]
[Result "0-1"]
[WhiteElo "2461"]
[BlackElo "2831"]
[TimeControl "180+1"]
[EndTime "8:06:26 PDT"]
[Termination "klimkoj won by checkmate"]

1. e4 {[%clk 0:02:56.2]} 1... e5 {[%clk 0:02:57.9]} 2. Nf3 {[%clk 0:02:56.3]}
2... Nc6 {[%clk 0:02:56.6]} 3. Nc3 {[%clk 0:02:57]} 3... Nf6 {[%clk 0:02:56.3]}
4. d4 {[%clk 0:02:57.5]} 4... exd4 {[%clk 0:02:56.3]} 5. Nd5 {[%clk 0:02:58.2]}
5... Nb4 {[%clk 0:02:45.7]} 6. Bd3 {[%clk 0:02:56.4]} 6... Nfxd5 {[%clk
0:02:37.6]} 7. exd5 {[%clk 0:02:57.3]} 7... Nxd3+ {[%clk 0:02:29.7]} 8. Qxd3
{[%clk 0:02:50.6]} 8... Be7 {[%clk 0:02:29.1]} 9. O-O {[%clk 0:02:38.2]} 9...
O-O {[%clk 0:02:24.2]} 10. Nxd4 {[%clk 0:02:38.4]} 10... Bf6 {[%clk 0:02:23.1]}
11. d6 {[%clk 0:02:15.7]} 11... Be5 {[%clk 0:01:49.8]} 12. Nf5 {[%clk
0:01:49.9]} 12... Qf6 {[%clk 0:01:46.4]} 13. f4 {[%clk 0:01:07.8]} 13... Bxd6
{[%clk 0:01:38.7]} 14. Nxd6 {[%clk 0:01:07.8]} 14... cxd6 {[%clk 0:01:39.1]} 15.
Bd2 {[%clk 0:01:05.3]} 15... Qxb2 {[%clk 0:01:32.5]} 16. Bc3 {[%clk 0:01:02.6]}
16... Qb6+ {[%clk 0:01:31]} 17. Kh1 {[%clk 0:01:01.8]} 17... d5 {[%clk
0:01:28.1]} 18. Rab1 {[%clk 0:00:59.6]} 18... Qc6 {[%clk 0:01:24.6]} 19. Rb5
{[%clk 0:00:49.3]} 19... b6 {[%clk 0:01:19.3]} 20. Rf3 {[%clk 0:00:37.3]} 20...
Ba6 {[%clk 0:01:05.3]} 21. Rh3 {[%clk 0:00:28.3]} 21... f5 {[%clk 0:00:45.8]}
22. Qd4 {[%clk 0:00:24.9]} 22... Rf7 {[%clk 0:00:46]} 23. Rxd5 {[%clk
0:00:24.3]} 23... Bb7 {[%clk 0:00:45.5]} 24. Rd3 {[%clk 0:00:23.3]} 24... Qxd5
{[%clk 0:00:45.1]} 25. Qxd5 {[%clk 0:00:23.4]} 25... Bxd5 {[%clk 0:00:46]} 26.
Rxd5 {[%clk 0:00:23.9]} 26... Rc8 {[%clk 0:00:46.2]} 27. Rd3 {[%clk 0:00:19.6]}
27... Re7 {[%clk 0:00:45.9]} 28. Kg1 {[%clk 0:00:19]} 28... Re2 {[%clk
0:00:44.9]} 29. Be5 {[%clk 0:00:15.6]} 29... Rcxc2 {[%clk 0:00:44.7]} 30. Rxd7
{[%clk 0:00:15.4]} 30... Re1# {[%clk 0:00:44.5]} 0-1

[Event "Early-Titled-Tuesday-Blitz-March-26-2024"]
[Site "Chess.com"]
[Date "2024.03.26"]
[Round "1"]
[White "jcibarra"]
[Black "ahmedkandiliii"]
[Result "1-0"]
[WhiteElo "3002"]
[BlackElo "2530"]
[TimeControl "180+1"]
[EndTime "8:06:30 PDT"]
[Termination "jcibarra won on time"]

1. e4 {[%clk 0:03:00.9]} 1... e5 {[%clk 0:02:58]} 2. Nf3 {[%clk 0:03:00.3]} 2...
Nc6 {[%clk 0:02:58.1]} 3. Bb5 {[%clk 0:02:56.3]} 3... a6 {[%clk 0:02:54.7]} 4.
Bxc6 {[%clk 0:02:56.1]} 4... dxc6 {[%clk 0:02:53.2]} 5. O-O {[%clk 0:02:56.7]}
5... f6 {[%clk 0:02:46.7]} 6. d4 {[%clk 0:02:55.7]} 6... exd4 {[%clk 0:02:41.9]}
7. Nxd4 {[%clk 0:02:56.6]} 7... c5 {[%clk 0:02:30.7]} 8. Nb3 {[%clk 0:02:56.1]}
8... Qxd1 {[%clk 0:02:30.9]} 9. Rxd1 {[%clk 0:02:55.5]} 9... Bd6 {[%clk
0:02:30.6]} 10. Na5 {[%clk 0:02:54.8]} 10... Nh6 {[%clk 0:01:59.9]} 11. Bxh6
{[%clk 0:02:38.2]} 11... gxh6 {[%clk 0:02:00.8]} 12. Nc4 {[%clk 0:02:26]} 12...
Be7 {[%clk 0:01:54.1]} 13. Nc3 {[%clk 0:02:24.3]} 13... Be6 {[%clk 0:01:22.9]}
14. Nd5 {[%clk 0:02:19.9]} 14... Bd8 {[%clk 0:01:22.9]} 15. Nce3 {[%clk
0:02:16.2]} 15... c6 {[%clk 0:01:15.7]} 16. Nf4 {[%clk 0:02:16.4]} 16... Bd7
{[%clk 0:01:11]} 17. Rd3 {[%clk 0:02:04.2]} 17... Bc7 {[%clk 0:01:10.9]} 18. Nh5
{[%clk 0:02:04.3]} 18... Be5 {[%clk 0:00:32.2]} 19. Nc4 {[%clk 0:01:57]} 19...
O-O-O {[%clk 0:00:24.3]} 20. Rad1 {[%clk 0:01:46.4]} 20... Bg4 {[%clk
0:00:20.5]} 21. Rxd8+ {[%clk 0:01:45.2]} 21... Rxd8 {[%clk 0:00:19.2]} 22. Rxd8+
{[%clk 0:01:46.1]} 22... Kxd8 {[%clk 0:00:20]} 23. Nxe5 {[%clk 0:01:46.8]} 23...
Bxh5 {[%clk 0:00:13.1]} 24. Nd3 {[%clk 0:01:44.9]} 24... b6 {[%clk 0:00:11.9]}
25. f3 {[%clk 0:01:44.4]} 25... Bf7 {[%clk 0:00:12.1]} 26. a3 {[%clk 0:01:43.7]}
26... Kd7 {[%clk 0:00:11.2]} 27. Kf2 {[%clk 0:01:43.5]} 27... Kd6 {[%clk
0:00:10.5]} 28. Ke3 {[%clk 0:01:43.8]} 28... c4 {[%clk 0:00:10.1]} 29. Nf4
{[%clk 0:01:42.8]} 29... Kc5 {[%clk 0:00:09.9]} 30. g4 {[%clk 0:01:39.1]} 30...
c3 {[%clk 0:00:08.8]} 31. b3 {[%clk 0:01:36]} 31... b5 {[%clk 0:00:06]} 32. Nd3+
{[%clk 0:01:34.8]} 32... Kb6 {[%clk 0:00:06]} 33. Kd4 {[%clk 0:01:35.4]} 33...
a5 {[%clk 0:00:01.6]} 34. b4 {[%clk 0:01:35.1]} 34... c5+ {[%clk 0:00:02.5]} 35.
Nxc5 {[%clk 0:01:31.7]} 35... axb4 {[%clk 0:00:02.2]} 36. axb4 {[%clk
0:01:31.4]} 36... Bc4 {[%clk 0:00:02.6]} 37. Nd7+ {[%clk 0:01:25.9]} 37... Kc6
{[%clk 0:00:02.2]} 38. Nxf6 {[%clk 0:01:26.6]} 38... Be2 {[%clk 0:00:01.8]} 39.
f4 {[%clk 0:01:22.2]} 39... Kd6 {[%clk 0:00:01.8]} 40. e5+ {[%clk 0:01:21.2]}
40... Ke6 {[%clk 0:00:02.1]} 41. f5+ {[%clk 0:01:21.9]} 41... Kf7 {[%clk
0:00:01.3]} 42. Kxc3 {[%clk 0:01:22.5]} 1-0